Cogmind - Beta 13 @@@ ROGUE MODE // 2024.04.04 @ 16:41:14 Player: useeikick Result: Self-destructed Performance ------------- Evolutions (1) 500 Regions Visited (5) 1000 Robots Destroyed (7) 35 Value Destroyed (70) 70 Prototype IDs (0) 0 Alien Tech Used (0) 0 Bonus (275) 275 TOTAL SCORE: 1880 Bonus ------- Follower Combat Kills 75 Entered Garrisons 200 Cogmind --------- Core Integrity 105/400 Matter 252/300 Energy 97/100 System Corruption 10% Temperature Cool (0) Movement Core (50) Location -9/Garrison Parts ------- > --- POWER (1) -------- (None) > --- PROPULSION (3) --- (None) > --- UTILITY (3) ------ Signal Interpreter > --- WEAPON (2) ------- (None) > --- INVENTORY (5) ---- Light Ion Engine Improved Ion Engine Authchip [Weapon] Mining Laser Peak State ------------ > --- POWER ------------ Light Ion Engine > --- PROPULSION ------- Flight Unit Flight Unit Flight Unit > --- UTILITY ---------- Signal Interpreter Propulsion Shielding Authchip [Weapon] > --- WEAPON ----------- Light Assault Rifle Light Cannon > --- INVENTORY -------- Light Ion Engine Improved Ion Engine Mining Laser [Rating: 12] Favorites ----------- Power Light Ion Engine Engine Light Ion Engine Propulsion Flight Unit Wheel Wheel Flight Unit Flight Unit Utility Propulsion Shielding Processor Signal Interpreter Hackware Authchip [Weapon] Protection Propulsion Shielding Weapon Light Assault Rifle Ballistic Gun Light Assault Rifle Ballistic Cannon Light Cannon Special Weapon Mining Laser Build | -11 -10 -10 -9 -9 -9 ------- Run | Yrd Mat Min Mat Sto Gar Slots Evolved 2 | . . . 2 . . Power . | . . . . . . Propulsion 1 | . . . 1 . . Utility 1 | . . . 1 . . Weapon . | . . . . . . Parts Attached 20 | 5 7 2 2 4 . Power 2 | 1 1 . . . . Engine 2 | 1 1 . . . . Core . | . . . . . . Reactor . | . . . . . . Propulsion 8 | 2 2 1 1 2 . Treads . | . . . . . . Leg . | . . . . . . Wheel 2 | 2 . . . . . Hover . | . . . . . . Flight 6 | . 2 1 1 2 . Utility 4 | . 2 . 1 1 . Device . | . . . . . . Storage . | . . . . . . Processor 1 | . . . 1 . . Hackware 1 | . . . . 1 . Protection 2 | . 2 . . . . Artifact . | . . . . . . Weapon 6 | 2 2 1 . 1 . Energy Gun . | . . . . . . Energy Cannon . | . . . . . . Ballistic Gun 4 | 2 1 . . 1 . Ballistic Cannon 1 | . 1 . . . . Launcher . | . . . . . . Special Weapon 1 | . . 1 . . . Impact Weapon . | . . . . . . Slashing Weapon . | . . . . . . Piercing Weapon . | . . . . . . Special Melee Weapon . | . . . . . . Unidentified Prototypes . | . . . . . . Parts Lost 10 | . . . . 2 8 Power 1 | . . . . . 1 Propulsion 5 | . . . . 2 3 Utility 2 | . . . . . 2 Weapon 2 | . . . . . 2 Highest Loss Streak 7 | . . . . 2 7 To Critical Strikes . | . . . . . . Average Slot Usage (%) 76 | . 72 85 79 90 43 Engine 11 | . 14 14 11 11 4 Wheel 2 | . 13 . . . . Flight 23 | . 14 28 27 33 13 Processor 3 | . . . 8 11 11 Protection 8 | . 1 14 11 11 1 Ballistic Gun 11 | . 23 9 . 7 9 Ballistic Cannon 9 | . 4 14 11 11 2 Special Weapon 3 | . . 4 11 3 . Naked Turns . | . . . . . . Heaviest Build 10 | 8 10 8 8 8 8 Greatest Support 20 | 20 20 8 12 12 12 Greatest Overweight (x) 1 | . 1 . . . . Average Overweight (x) . | . . . . . . Largest Inventory Capacity 5 | 5 5 5 5 5 5 Average Capacity 5 | 5 5 5 5 5 5 Most Carried 5 | 5 5 5 5 4 4 Average Carried 4 | 1 2 4 4 3 4 Final Capacity 5 | 5 5 5 5 5 5 Final Carried 5 | 1 5 5 4 4 4 Class Distribution -------------------- 62% | Scavenger-Mutant 37% | Mutant Dominant Class ---------------- Mutant | -10/Materials Scavenger-Mutant | -10/Mines Scavenger-Mutant | -9/Materials Scavenger-Mutant | -9/Storage Mutant | -9/Garrison Resources | -11 -10 -10 -9 -9 -9 ----------- Run | Yrd Mat Min Mat Sto Gar Matter Collected 408 | 186 95 35 . 92 . Remotely . | . . . . . . Salvage Created 100 | . 95 5 . . . Parts 14 | . 14 . . . . Haulers Intercepted . | . . . . . . Recyclers Shooed . | . . . . . . Parts Field Recycled . | . . . . . . Retrieved Matter . | . . . . . . Parts Self-Destructed . | . . . . . . Prevented . | . . . . . . Kills | -11 -10 -10 -9 -9 -9 ------- Run | Yrd Mat Min Mat Sto Gar Combat Hostiles Destroyed 8 | . 7 1 . . . Guns 7 | . 7 . . . . Cannons 1 | . . 1 . . . Classes Destroyed 2 | . 1 1 . . . Swarmer 7 | . 7 . . . . Assembled 1 | . . 1 . . . Best Kill Streak 7 | . 7 1 . . . Combat Bots Only 7 | . 7 1 . . . Max Kills in Single Turn 1 | . 1 1 . . . Gunslinging . | . . . . . . Exploded . | . . . . . . Melee . | . . . . . . Uniques/NPCs Destroyed . | . . . . . . Combat | -11 -10 -10 -9 -9 -9 -------- Run | Yrd Mat Min Mat Sto Gar Hostile Shots Fired 125 | . 28 1 . 38 58 Missed 55 | . 9 . . 16 30 Damage Taken 902 | . 159 6 . 356 381 Core 339 | . 44 . . 135 160 Absorbed by Shields 89 | . . . . . 89 Redirected to Shielding 26 | . . 1 . 25 . Core Remaining (%) 91 | 100 . 82 . . . Volleys Fired 23 | . 9 2 . 12 . Largest 2 | . 2 2 . 2 . Hottest 100 | . 40 100 . 100 . Shots Fired 44 | . 18 3 . 23 . Gun 30 | . 18 1 . 11 . Cannon 12 | . . 1 . 11 . Launcher . | . . . . . . Special 2 | . . 1 . 1 . Kinetic 42 | . 18 2 . 22 . Thermal 2 | . . 1 . 1 . Explosive . | . . . . . . Electromagnetic . | . . . . . . Robot Hit Streak 9 | . 7 1 . 9 . Robot Miss Streak 2 | . 2 1 . 2 . Penetration Max . | . . . . . . Secondary Targets . | . . . . . . Shots Hit Robots 27 | . 8 1 . 18 . Core Hits 11 | . 7 1 . 3 . Critical Kills . | . . . . . . Critical Parts Destroyed . | . . . . . . Critical Strikes 1 | . . . . 1 . Blast 1 | . . . . 1 . Melee Attacks . | . . . . . . Impact . | . . . . . . Slashing . | . . . . . . Piercing . | . . . . . . Sneak Attacks . | . . . . . . Combat Hostiles . | . . . . . . Follow-up Attacks . | . . . . . . Damage Inflicted 328 | . 96 20 . 212 . Guns 171 | . 96 . . 75 . Cannons 157 | . . 20 . 137 . Explosions . | . . . . . . Melee . | . . . . . . Ramming . | . . . . . . Kinetic 328 | . 96 20 . 212 . Thermal . | . . . . . . Explosive . | . . . . . . Electromagnetic . | . . . . . . Impact . | . . . . . . Slashing . | . . . . . . Piercing . | . . . . . . Highest Corruption 10 | . . . . . 10 Average Corruption 9 | . . . . . 9 Corruption Purged . | . . . . . . Corruption Blocked . | . . . . . . Effects 6 | . . . . . 6 Matter Fused 1 | . . . . . 1 Data Loss (minor) 1 | . . . . . 1 Alerts 1 | . . . . . 1 Misdirections 3 | . . . . . 3 Overload Shots . | . . . . . . Overflow Damage . | . . . . . . Projectiles . | . . . . . . Explosions . | . . . . . . Melee . | . . . . . . Knockbacks . | . . . . . . Impact . | . . . . . . Kinetic . | . . . . . . Secondary . | . . . . . . Self-Inflicted Damage . | . . . . . . Shots . | . . . . . . Rammed . | . . . . . . Targets Rammed . | . . . . . . Kicked . | . . . . . . Crushed . | . . . . . . Highest Temperature 67 | . . 28 . 67 . Average Temperature 34 | . . 15 . 37 . Received Heat Transfer 242 | . . . . 135 107 Siege Activations . | . . . . . . Robots Corrupted . | . . . . . . Combat Hostiles . | . . . . . . Parts Fried . | . . . . . . Impact Corruptions . | . . . . . . Robots Melted . | . . . . . . Combat Hostiles . | . . . . . . Parts Melted . | . . . . . . Heat Transferred . | . . . . . . Parts Sabotaged . | . . . . . . Parts Stolen . | . . . . . . Parts Stripped . | . . . . . . Power Chain Reactions . | . . . . . . Alert | -11 -10 -10 -9 -9 -9 ------- Run | Yrd Mat Min Mat Sto Gar Peak Influence 309 | . 309 208 59 117 63 Initial 120 | . . 120 59 24 63 Average 125 | . 207 158 59 69 19 Maximum Alert Level 1 | . 1 1 . . . Low Security (%) 83 | 100 35 92 100 100 100 Level 1 16 | . 64 7 . . . Level 2 . | . . . . . . Level 3 . | . . . . . . Level 4 . | . . . . . . Level 5 . | . . . . . . High Security . | . . . . . . Max Security . | . . . . . . Squads Dispatched 2 | . . . . 2 . Investigation . | . . . . . . Extermination . | . . . . . . Reinforcement 1 | . . . . 1 . Assault . | . . . . . . Garrison 1 | . . . . 1 . Intercept . | . . . . . . Searches Triggered . | . . . . . . Construction Impeded . | . . . . . . Haulers Reinforced . | . . . . . . Active Scanning Responses . | . . . . . . Cargo Convoy Interrupts . | . . . . . . Stealth | -11 -10 -10 -9 -9 -9 --------- Run | Yrd Mat Min Mat Sto Gar Distress Signals 2 | . . . . 2 . Communications Jammed . | . . . . . . Distress Signals . | . . . . . . Times Spotted 30 | . 12 2 . 7 9 Peak Tracking Total 9 | . 8 3 . 5 9 Tactical Retreats 4 | . 2 1 . . 1 Traps | -11 -10 -10 -9 -9 -9 ------- Run | Yrd Mat Min Mat Sto Gar Traps Triggered 4 | . . . . 1 3 Indirectly . | . . . . . . Trap Hack Attempts . | . . . . . . Triggered . | . . . . . . Disarmed . | . . . . . . Reprogrammed . | . . . . . . Reused . | . . . . . . Traps Extracted . | . . . . . . Installed . | . . . . . . Triggered . | . . . . . . Machines | -11 -10 -10 -9 -9 -9 ---------- Run | Yrd Mat Min Mat Sto Gar Machines Disabled . | . . . . . . Max in Single Turn . | . . . . . . Machines Repaired . | . . . . . . Machines Dismantled . | . . . . . . Machines Sabotaged . | . . . . . . Overloaded Fab Kills . | . . . . . . Hacking | -11 -10 -10 -9 -9 -9 --------- Run | Yrd Mat Min Mat Sto Gar Machines Accessed 4 | . 1 1 . 2 . Terminals 3 | . 1 1 . 1 . Fabricators . | . . . . . . Repair Stations . | . . . . . . Recycling Units . | . . . . . . Scanalyzers . | . . . . . . Garrison Access 1 | . . . . 1 . Total Hacks 10 | . 2 4 . 4 . Successful 6 | . 1 1 . 4 . Failed 4 | . 1 3 . . . Catastrophic . | . . . . . . Database Lockouts . | . . . . . . Manual . | . . . . . . Terminals 9 | . 2 4 . 3 . Fabricators . | . . . . . . Repair Stations . | . . . . . . Recycling Units . | . . . . . . Scanalyzers . | . . . . . . Garrison Access 1 | . . . . 1 . Terminal Hacks 5 | . 1 1 . 3 . Record 1 | . . . . 1 . Level Access Points 1 | . . 1 . . . Alert Level 1 | . . . . 1 . Locate Traps 1 | . . . . 1 . Zone Layout 1 | . 1 . . . . Fabricator Hacks . | . . . . . . Repair Station Hacks . | . . . . . . Recycling Unit Hacks . | . . . . . . Scanalyzer . | . . . . . . Garrison Access Hacks 1 | . . . . 1 . Unlock Access 1 | . . . . 1 . Unauthorized Hacks . | . . . . . . Terminals . | . . . . . . Fabricators . | . . . . . . Repair Stations . | . . . . . . Recycling Units . | . . . . . . Scanalyzers . | . . . . . . Garrison Access . | . . . . . . Data Cores Recovered . | . . . . . . Used . | . . . . . . Hacking Detections 3 | . 1 1 . 1 . Full Trace Events . | . . . . . . Feedback Events . | . . . . . . Feedback Blocked . | . . . . . . Robot Schematics Acquired . | . . . . . . Robots Built . | . . . . . . Authchips . | . . . . . . Time . | . . . . . . Total Robot Build Rating . | . . . . . . Part Schematics Acquired . | . . . . . . Parts Built . | . . . . . . Authchips . | . . . . . . Time . | . . . . . . Total Part Build Rating . | . . . . . . Parts Repaired . | . . . . . . Time . | . . . . . . Parts Recycled . | . . . . . . Recycled Matter . | . . . . . . Retrieved Matter . | . . . . . . Retrieved Components . | . . . . . . Parts Scanalyzed . | . . . . . . Part Schematics Acquired . | . . . . . . Parts Damaged . | . . . . . . Bothacking | -11 -10 -10 -9 -9 -9 ------------ Run | Yrd Mat Min Mat Sto Gar Used RIF Installer . | . . . . . . Robots Hacked . | . . . . . . Non-combat . | . . . . . . Combat . | . . . . . . Robot Hacks Applied . | . . . . . . Relay Couplers Released . | . . . . . . Fabnet Peak Effective % . | . . . . . . Robots Rewired . | . . . . . . Allies Hacked . | . . . . . . Hacks Repelled . | . . . . . . Allies | -11 -10 -10 -9 -9 -9 -------- Run | Yrd Mat Min Mat Sto Gar Total Allies 6 | . . 6 . . . Largest Group 3 | . . 3 2 2 . Highest-Rated Group 62 | . . 62 62 62 . Highest-Rated Ally 31 | . . 31 31 31 . Total Orders . | . . . . . . Ally Attacks 40 | . . 20 . 20 . Total Damage 487 | . . 178 . 309 . Kills 8 | . . 4 . 4 . Allies Corrupted . | . . . . . . Allies Melted 1 | . . 1 . . . Intel | -11 -10 -10 -9 -9 -9 ------- Run | Yrd Mat Min Mat Sto Gar Robot Analysis Total . | . . . . . . Derelict Logs Recovered 2 | . . 2 . . . Drone Launches . | . . . . . . Drone Recoveries . | . . . . . . Exploration | -11 -10 -10 -9 -9 -9 ------------- Run | Yrd Mat Min Mat Sto Gar Turns Passed 775 | 33 158 333 37 104 110 Spaces Moved 1078 | 32 202 493 27 160 164 Core 118 | 10 . . . . 108 Treads . | . . . . . . Legs . | . . . . . . Wheels 58 | 22 36 . . . . Hover . | . . . . . . Flight 902 | . 166 493 27 160 56 Fastest Speed 34 | 50 37 37 34 34 34 Average Speed 40 | 70 45 37 35 34 45 Slowest Speed 117 | 80 117 37 37 37 50 Overloaded Moves . | . . . . . . Propulsion Burnouts . | . . . . . . Robots Hopped 6 | . 1 1 . 4 . Cave-ins Triggered . | . . . . . . Exploration Rate (%) 29 | 4 29 65 5 36 37 Regions Visited 5 Branch Regions 2 Pre-discovered Areas 1 | . . 1 . . . Known Exits Taken 3 | . . 1 1 1 . Unknown Exits Taken 2 | 1 1 . . . . Scrap Searched . | . . . . . . Spaces Dug 1 | . . 1 . . . Terrain Destroyed 2 | . . 1 . 1 . Melee . | . . . . . . Projectile 2 | . . 1 . 1 . AOE . | . . . . . . Terrain Rammed . | . . . . . . Walls Destroyed . | . . . . . . Machines Disabled . | . . . . . . Actions | -11 -10 -10 -9 -9 -9 --------- Run | Yrd Mat Min Mat Sto Gar Total 1361 | 42 250 636 53 182 198 Wait 189 | . 18 139 25 7 . Move 1061 | 31 199 490 26 154 161 Hop 4 | . 1 1 . 2 . Pick Up 19 | 6 9 1 . 3 . Fast Attach 4 | . 3 . 1 . . Attach 9 | 5 . . 1 3 . Detach . | . . . . . . Swap 7 | . 4 2 . 1 . Drop 8 | . 7 1 . . . Fire 23 | . 9 2 . 12 . Melee . | . . . . . . Ram . | . . . . . . Kick . | . . . . . . Crush . | . . . . . . Escape Stasis 37 | . . . . . 37 Rewire . | . . . . . . Trap . | . . . . . . Miscellaneous . | . . . . . . Route ------- -11/Scrapyard -10/Materials -10/Mines (discovered 2 exits: *Mat x2) -9/Materials (discovered 2 exits: Mat / *Sto) -9/Storage -9/Garrison (discovered 1 exit: *Mat) History --------- Turn | Location | Event 8 | -11/Scrapyard | Discovered new exit (range 15) 34 | -11/Scrapyard | Entered Materials 122 | -10/Materials | Destroyed 7 combat bots 152 | -10/Materials | Discovered new exit (range 12) 192 | -10/Materials | Entered Mines 193 | -10/Mines | Met a Derelict bent on vengeance 194 | -10/Mines | Assisted by bots powering up and referring to "LRC-V3" 209 | -10/Mines | Identified exit to Materials 271 | -10/Mines | Assembled infested the area 276 | -10/Mines | Assisted by a Guerilla fighting off Assembled 333 | -10/Mines | Learned 2 Materials zone layouts 339 | -10/Mines | Learned location of Zion (-6) 393 | -10/Mines | Build established: Scavenger-Mutant 405 | -10/Mines | Received a Mining Laser from a helpful Derelict 525 | -10/Mines | Entered Materials 525 | -9/Materials | Accompanied by 2 allies 525 | -9/Materials | Evolved 2 slots: Propulsion x1, Utility x1 526 | -9/Materials | Identified exit to Materials 527 | -9/Materials | Discovered new exit (range 15) 530 | -9/Materials | Led the pair of lost Derelicts to an unsafe place 553 | -9/Materials | Identified exit to Storage 562 | -9/Materials | Entered Storage 562 | -9/Storage | Accompanied by 2 allies 607 | -9/Storage | Garrison activated, responded to threat 666 | -9/Storage | Identified exit to Garrison 666 | -9/Storage | Entered Garrison 672 | -9/Garrison | Triggered checkpoint 691 | -9/Garrison | System corruption reached 10% 752 | -9/Garrison | Lost 7 parts (1p3n2u1w) 756 | -9/Garrison | Core integrity fell below 50% 770 | -9/Garrison | Discovered exit to Materials (range 11) 775 | -9/Garrison | Attempted to access garrison exit controls, blocked by remote lockdown 776 | -9/Garrison | Self-destructed Last Messages --------------- 00715_ System corrupted: Component data lost. 00715_ Field strength at 56. 00716_ Field strength at 51. 00717_ Field strength at 46. 00718_ Field strength at 41. 00719_ Field strength at 36. 00720_ Field strength at 31. 00721_ Flight Unit destroyed. 00721_ Critical hit (Burn: +27). 00721_ Field strength at 21. 00722_ Field strength at 15. 00723_ Field strength at 5. 00724_ Stasis field depleted. 00738_ System corrupted: IFF burst signal emitted. 00754_ Lgt. Assault Rifle destroyed. 00770_ EXIT=FOUND: MATERIALS 00775_ Attempting to access garrison exit controls... 00775_ Remote lockdown engaged. Map ----- +----------------------------------------------------+ | ?# ## "?????"????????????????????? | | ?# ## """" """" #???????????????? | | ?# #???????????????? | | ?# #???????????????? | | ?# ## """" """" #???????????????? | | ?# ## "??? "????????????????????? | | ?# ### "???? "????????????????????? | | ?# #?# "?????"????????????????????? | | ?# #?# ??????????????????????????? | | ?# #?###??????????????????????????? | | ?# #??????????????????????????????? | | ?# #??????????????????????????????? | | ?# #######################????????? | | ?# #????????? | | ?# #????????? | | ?# g #????????? | | ?################# #### #????????? | | ?????????????????# #??# #????????? | | ?????????????????# #??# #????????? | | ????????????????? #??# #????????? | | ???????????????? #??# #????????? | | ???????????????######??# #????????? | | ???????????????????????# #????????? | | ???????????????????????# #????????? | | ???????????????????????# #????????? | | ???????????????????????# @ #????????? | | ???????????????????????# #????????? | | ???????????????????????#####????????? | | ????????????????????????????????????? | | ????????????????????????????????????? | | ????????????????????????????????????? | | ????????????????????????????????????? | | ????????????????????????????????????? | | ????????????????????????????????????? | | ????????????????????????????????????? | | ????????????????????????????????????? | | ????????????????????????????????????? | | ????????????????????????????????????? | | | | | | | | | | | | | | | | | | | | | | | | | +----------------------------------------------------+ Best States ------------- Heat Dissipation 28 Energy Generation 10 Energy Capacity 250 Matter Stores 300 Matter Capacity 300 Sight Range 16 Terrain Scan Density 10 Armor Coverage 150 Propulsion Shielding 33 Evasion (%) 63 Authchip Count 2 Item Schematics ----------------- None Robot Schematics ------------------ None Fabricated ------------ Nothing Alien Tech Used ----------------- None Achievements -------------- None Challenges ------------ None Game ------ Seed DamperSpikedOptics Manual? 0 Play Time 00:14:45 Cumulative 14.1 hours Start 2024.04.04 @ 16:27:56 End 2024.04.04 @ 16:41:14 Sessions 1 Manual Loads 0 Difficulty Rogue Special Mode None Game No. 28 Rogue 28 Adventurer 0 Explorer 0 Win Type - Total 0 Types 0/0/0/0/0/0/0/0/0 Lore% 17 Gallery% 20 Achievement% 16 Wizard Run 0 Options --------- Layout 1 ASCII 0 Keyboard 0 Movement Numpad Keybinds 0 Fullscreen 0 Font 20/SmallcapsGlow Map View 50x35 Zoom Use 0% Tactical HUD 1 Map Filters NONE Filters NONE Steam 1 RUN: 62166b70-00e4-45a2-85c8-3f45e3c3c29d